bitfinex-derivatives/quotes_BTCF0:USTF0_20241022
["timestamp","ask_amount","ask_price","bid_price","bid_amount"]
[1729625067817,0.464893,67604.0,67603.0,0.11]
[1729625068011,0.48925659,67604.0,67603.0,0.11]
[1729625069315,0.09835659,67604.0,67603.0,0.20835492]
[1729625070214,0.09835659,67604.0,67603.0,0.28175689]
[1729625070406,0.09835659,67604.0,67603.0,0.18340197]
[1729625070609,0.09835659,67604.0,67603.0,0.11]
[1729625072415,0.02436359,67604.0,67603.0,0.16869731]
[1729625072734,0.02436359,67604.0,67603.0,0.11]
[1729625072735,0.073993,67604.0,67603.0,0.11]
[1729625073424,0.22191324,67604.0,67603.0,0.11]
[1729625075114,0.22191324,67604.0,67596.0,0.3608]
[1729625075115,0.18153334,67604.0,67596.0,0.3608]
[1729625075317,0.074001,67597.0,67596.0,0.3608]
[1729625075523,0.074001,67597.0,67596.0,0.4708]
[1729625077429,0.107498,67597.0,67596.0,0.4708]
[1729625080622,0.107498,67597.0,67596.0,0.3608]
[1729625080819,0.10754795,67597.0,67596.0,0.4708]
[1729625082017,0.11,67603.0,67596.0,0.64239554]
[1729625082217,0.11,67603.0,67600.0,0.05866332]
[1729625083224,0.11,67603.0,67601.0,0.05868155]
[1729625083422,0.073995,67602.0,67601.0,0.05868155]
[1729625083625,0.073995,67602.0,67597.0,0.07340197]
[1729625083626,0.11,67603.0,67600.0,0.05868155]
[1729625083823,0.17173196,67604.0,67600.0,0.05868155]
[1729625083824,0.293996,67601.0,67600.0,0.05868155]
[1729625084017,0.073997,67600.0,67599.0,0.04402024]
[1729625084215,0.11,67600.0,67598.0,0.04402024]
[1729625084417,0.544798,67599.0,67598.0,0.04402024]
[1729625084726,0.074002,67596.0,67588.0,0.0756213]
[1729625084915,0.074009,67589.0,67588.0,0.00221933]
[1729625086218,0.244009,67589.0,67588.0,0.00221933]
[1729625089424,0.07401,67588.0,67587.0,0.07340197]
[1729625089827,0.51789,67588.0,67587.0,0.05801599]
[1729625090021,0.71889,67588.0,67582.0,0.0882336]
[1729625090222,0.604816,67583.0,67582.0,0.0882336]
[1729625090628,1.048736,67583.0,67582.0,0.0882336]
[1729625091824,1.07287207,67583.0,67582.0,0.0882336]
[1729625092020,1.59885607,67583.0,67573.0,0.10315416]
[1729625092226,0.244026,67574.0,67573.0,0.10315416]
[1729625092423,0.074026,67574.0,67573.0,0.10315416]
[1729625095827,0.074026,67574.0,67572.0,0.074028]
[1729625096436,0.074027,67573.0,67572.0,0.074028]
[1729625097528,0.27896,67576.0,67568.0,0.17]
[1729625097529,0.07403,67571.0,67568.0,0.17]
[1729625097736,0.074026,67574.0,67571.0,0.074029]
[1729625098834,0.074025,67575.0,67571.0,0.074029]
[1729625099031,0.074028,67572.0,67571.0,0.074029]
[1729625099231,0.17,67573.0,67568.0,0.17]
[1729625099433,0.074031,67570.0,67567.0,0.3608]
[1729625099629,0.074031,67570.0,67567.0,0.434832]
[1729625099927,0.17,67568.0,67563.0,0.074037]
[1729625100124,0.17,67568.0,67561.0,0.0329]
[1729625100125,0.17,67568.0,67566.0,0.074034]
[1729625100320,0.244033,67568.0,67561.0,0.2029]
[1729625100520,0.244033,67568.0,67567.0,0.074033]
[1729625100931,0.17,67568.0,67561.0,0.2029]
[1729625101127,0.17,67568.0,67561.0,0.10694]
[1729625101128,0.074035,67566.0,67561.0,0.10694]
[1729625101323,0.074035,67566.0,67561.0,0.0329]
[1729625101632,0.627035,67566.0,67557.0,0.36288]
[1729625101823,0.627035,67566.0,67553.0,0.3608]
[1729625102231,0.627035,67566.0,67554.0,0.074048]
[1729625102430,0.627035,67566.0,67553.0,0.3608]
[1729625102631,0.627035,67566.0,67553.0,0.434849]
[1729625103033,0.627035,67566.0,67554.0,0.074048]
[1729625104136,0.074048,67554.0,67553.0,0.3608]
[1729625107036,0.434848,67554.0,67553.0,0.0439605]
[1729625107235,0.434848,67554.0,67542.0,0.3608]
[1729625107236,0.80488,67554.0,67549.0,0.04395141]
[1729625107430,0.074063,67540.0,67539.0,0.00222084]
[1729625107740,0.17,67540.0,67539.0,0.00222084]
[1729625107931,0.244063,67540.0,67539.0,0.00222084]
[1729625108123,0.17,67540.0,67539.0,0.00222084]
[1729625108323,0.244063,67540.0,67539.0,0.00222084]
[1729625109730,0.244063,67540.0,67537.0,0.139866]
[1729625110137,0.244063,67540.0,67538.0,0.074065]
[1729625111738,0.17,67540.0,67538.0,0.074065]
[1729625112143,0.17,67540.0,67537.0,0.0658]
[1729625112336,0.17,67540.0,67539.0,0.074064]
[1729625113244,0.10888,67542.0,67541.0,0.074062]
[1729625113536,0.02434116,67546.0,67545.0,0.074058]
[1729625113741,0.10888,67547.0,67546.0,0.074056]
[1729625114041,0.27888,67547.0,67546.0,0.074056]
[1729625115339,0.27888,67547.0,67544.0,0.074058]
[1729625115642,0.17,67545.0,67544.0,0.074058]
[1729625115838,0.5308,67545.0,67544.0,0.074058]
[1729625117637,0.604858,67545.0,67541.0,0.074062]
[1729625117833,0.604858,67545.0,67539.0,0.074064]
[1729625117834,0.17,67542.0,67539.0,0.074064]
[1729625118035,0.074065,67538.0,67537.0,0.0328]
[1729625118238,0.074065,67538.0,67529.0,0.104774]
[1729625118239,0.074073,67531.0,67529.0,0.104774]
[1729625118545,0.074073,67531.0,67529.0,0.0307]
[1729625120036,0.074073,67531.0,67530.0,0.13085812]
[1729625121435,0.074073,67531.0,67530.0,0.20435843]
[1729625121641,0.074073,67531.0,67530.0,0.07350031]
[1729625122040,0.17,67533.0,67530.0,0.07350031]
[1729625122345,0.074075,67529.0,67528.0,0.07350031]
[1729625122546,0.244075,67529.0,67528.0,0.07350031]
[1729625122753,0.244075,67529.0,67528.0,0.17204173]
[1729625124448,0.244075,67529.0,67528.0,0.14757631]
[1729625125447,0.244075,67529.0,67528.0,0.074076]
[1729625126149,0.074076,67528.0,67527.0,0.1497985]
[1729625126451,0.074076,67528.0,67527.0,0.24822474]
[1729625127248,0.074076,67528.0,67527.0,0.17472443]
[1729625128046,0.074076,67528.0,67527.0,0.17475931]
[1729625128551,0.074076,67528.0,67527.0,0.17253812]
[1729625132761,0.074076,67528.0,67527.0,0.17273407]
[1729625136153,0.074076,67528.0,67527.0,0.29039564]
[1729625137252,0.074076,67528.0,67527.0,0.29051333]
[1729625140655,0.182996,67528.0,67527.0,0.29051333]
[1729625140859,0.10892,67528.0,67527.0,0.29051333]
[1729625141466,0.182996,67528.0,67527.0,0.29051333]
[1729625142162,0.182996,67528.0,67527.0,0.28973626]
[1729625144355,0.292996,67528.0,67527.0,0.28973626]
[1729625144561,0.184076,67528.0,67527.0,0.28973626]
[1729625144762,0.3608,67542.0,67528.0,0.074076]
[1729625145068,0.38551984,67542.0,67541.0,0.184062]
[1729625145368,0.56958084,67542.0,67541.0,0.21565926]
[1729625145867,0.56958084,67542.0,67541.0,0.28972126]
[1729625146459,0.49551984,67542.0,67541.0,0.17244842]
[1729625146656,0.2188,67544.0,67541.0,0.20838642]
[1729625146967,0.3608,67548.0,67547.0,0.074055]
[1729625147171,0.4696,67548.0,67547.0,0.29027475]
[1729625148058,0.3608,67548.0,67547.0,0.29027475]
[1729625148261,0.5308,67548.0,67547.0,0.29027475]
[1729625149370,0.604854,67548.0,67547.0,0.29027475]
[1729625150169,0.63888792,67548.0,67547.0,0.074055]
[1729625150362,0.074056,67547.0,67544.0,0.074058]
[1729625150562,0.17,67545.0,67544.0,0.074058]
[1729625151064,0.20400612,67545.0,67544.0,0.074058]
[1729625151263,0.17,67545.0,67544.0,0.074058]
[1729625152066,0.17,67545.0,67539.0,0.3608]
[1729625152263,0.17,67540.0,67539.0,0.434864]
[1729625153171,0.17,67543.0,67539.0,0.3608]
[1729625153368,0.17,67543.0,67542.0,0.074061]
[1729625154767,0.14771371,67600.0,67575.0,0.3608]
[1729625154972,0.13392024,67604.0,67599.0,0.434798]
[1729625155164,0.13392024,67604.0,67599.0,0.3608]
[1729625155165,1.82476,67603.0,67599.0,0.3608]
[1729625155367,1.94376,67603.0,67599.0,0.3608]
[1729625155559,1.94376,67603.0,67599.0,0.3109]
[1729625155560,0.4766,67602.0,67599.0,0.3109]
[1729625155961,0.4438,67601.0,67599.0,0.3109]
[1729625156167,0.4438,67600.0,67599.0,0.3109]
[1729625156371,0.4438,67601.0,67599.0,0.3109]
[1729625156871,0.4438,67600.0,67599.0,0.3109]
[1729625157071,0.4438,67601.0,67599.0,0.3109]
[1729625157277,0.4438,67601.0,67599.0,0.36939025]
[1729625157468,0.4438,67600.0,67599.0,0.36939025]
[1729625157670,0.0328,67602.0,67599.0,0.36939025]
[1729625157671,0.4438,67601.0,67599.0,0.36939025]
[1729625157974,0.4438,67601.0,67599.0,0.36938969]
[1729625158174,0.4438,67600.0,67599.0,0.3109]
[1729625158377,0.4438,67601.0,67599.0,0.3109]
[1729625158775,0.4438,67600.0,67599.0,0.3109]
[1729625159070,0.4438,67601.0,67599.0,0.3109]
[1729625159274,0.13196,67600.0,67599.0,0.3109]
[1729625159464,0.57576,67600.0,67599.0,0.3109]
[1729625161765,0.4438,67600.0,67599.0,0.3109]
[1729625161970,0.57576,67600.0,67599.0,0.3109]
[1729625163271,0.13196,67600.0,67599.0,0.3109]
[1729625163668,0.08011424,67600.0,67599.0,0.3109]
[1729625164180,0.13192,67600.0,67599.0,0.3109]
[1729625164868,0.08748258,67600.0,67599.0,0.3109]
[1729625171378,0.12038258,67600.0,67599.0,0.3109]
[1729625172482,0.0329,67600.0,67599.0,0.3109]
[1729625172671,0.16482,67600.0,67599.0,0.3109]
[1729625176474,0.16482,67600.0,67593.0,0.074005]
[1729625176784,0.16482,67600.0,67599.0,0.3608]
[1729625176983,0.33482,67600.0,67599.0,0.3608]
[1729625179790,0.16482,67600.0,67599.0,0.3608]
[1729625179979,0.13392024,67604.0,67603.0,0.073994]
[1729625180290,0.13392024,67604.0,67603.0,0.4000265]
[1729625183289,0.13392024,67604.0,67603.0,0.50981837]
[1729625184383,0.0302,67622.0,67614.0,0.073982]
[1729625184384,0.1478918,67617.0,67614.0,0.073982]
[1729625184586,0.1478918,67617.0,67616.0,1.0476325]
[1729625184788,0.17180302,67617.0,67616.0,0.98746195]
[1729625185193,0.17180302,67617.0,67616.0,1.3048375]
[1729625185384,0.17180302,67617.0,67616.0,1.30483716]
[1729625186182,0.17180302,67617.0,67616.0,1.1216125]
[1729625186990,0.17180302,67617.0,67616.0,0.9516125]
[1729625187296,0.23662135,67617.0,67616.0,0.9516125]
[1729625188790,0.23662135,67617.0,67616.0,0.8776325]
[1729625189887,0.17180302,67617.0,67616.0,0.8776325]
[1729625191000,0.23662163,67617.0,67616.0,0.8776325]
[1729625191196,0.38451343,67617.0,67616.0,0.8776325]
[1729625192293,0.34827776,67617.0,67616.0,0.8776325]
[1729625192494,0.38451321,67617.0,67616.0,0.8776325]
[1729625194698,0.31969482,67617.0,67616.0,0.8776325]
[1729625195295,0.31969482,67617.0,67616.0,0.93626009]
[1729625197700,0.31969482,67617.0,67616.0,0.8776325]
[1729625200598,0.42969482,67617.0,67616.0,0.8776325]
[1729625202196,0.39267501,67617.0,67616.0,0.8776325]
[1729625202810,0.45749322,67617.0,67616.0,0.8776325]
[1729625204005,0.53147222,67617.0,67616.0,0.8776325]
[1729625204409,0.68689406,67617.0,67616.0,0.7216]
[1729625204609,0.07399,67607.0,67606.0,0.3608]
[1729625204799,0.37464821,67607.0,67606.0,0.5168325]
[1729625205199,0.42007776,67607.0,67606.0,0.5168325]
[1729625205405,0.37464821,67607.0,67606.0,0.5168325]
[1729625205606,0.29423675,67607.0,67606.0,0.5168325]
[1729625206006,0.42007675,67607.0,67606.0,0.5168325]
[1729625206311,0.30983,67607.0,67606.0,0.5168325]
[1729625206512,0.42009041,67607.0,67606.0,0.5168325]
[1729625208215,0.43951889,67607.0,67606.0,0.5168325]
[1729625209712,0.32925848,67607.0,67606.0,0.5168325]
[1729625215414,0.20341848,67607.0,67606.0,0.5168325]
[1729625215624,0.32225848,67607.0,67606.0,0.5168325]
[1729625216416,0.01942848,67607.0,67606.0,0.5168325]
[1729625216619,0.0301,67612.0,67606.0,0.7008235]
[1729625216821,0.22884,67613.0,67612.0,0.073984]
[1729625217210,0.11884,67613.0,67612.0,0.2300165]
[1729625218017,0.11884,67613.0,67612.0,0.3400165]
[1729625218713,0.25876379,67617.0,67612.0,0.3760325]
[1729625218914,0.25876379,67617.0,67609.0,0.3608]
[1729625218915,0.25876379,67617.0,67616.0,0.5908125]
[1729625219312,0.25876379,67617.0,67616.0,0.6218125]
[1729625223125,0.25876379,67617.0,67616.0,0.46578]
[1729625223424,0.25876379,67617.0,67616.0,0.6218125]
[1729625224922,0.36899702,67617.0,67616.0,0.6218125]
[1729625226121,0.51660389,67617.0,67616.0,0.6218125]
[1729625226315,0.36899702,67617.0,67616.0,0.6218125]
[1729625226934,0.51659862,67617.0,67616.0,0.6218125]
[1729625227226,0.51659862,67617.0,67616.0,0.5908125]
[1729625227418,0.36899702,67617.0,67616.0,0.5168325]
[1729625227727,0.59057257,67617.0,67616.0,0.5168325]
[1729625228118,0.59057258,67617.0,67616.0,0.5168325]
[1729625228422,0.44297602,67617.0,67616.0,0.5168325]
[1729625228626,0.59056765,67617.0,67616.0,0.5168325]
[1729625228927,0.70056765,67617.0,67616.0,0.5168325]
[1729625229232,0.55297602,67617.0,67616.0,0.39836759]
[1729625229418,0.60604919,67617.0,67616.0,0.39836759]
[1729625229616,0.60604919,67617.0,67616.0,0.24233509]
[1729625229617,0.74634919,67617.0,67616.0,0.24233509]
[1729625229814,0.073993,67604.0,67603.0,0.3608]
[1729625230019,0.36764906,67604.0,67603.0,0.3608]
[1729625230220,0.41307658,67604.0,67603.0,0.3608]
[1729625231332,0.44337658,67604.0,67603.0,0.3608]
[1729625232423,0.50337658,67604.0,67603.0,0.3608]
[1729625232821,0.393133,67604.0,67603.0,0.3608]
[1729625233819,0.393133,67604.0,67595.0,0.36509908]
[1729625233820,0.074002,67596.0,67595.0,0.36509908]
[1729625234115,0.244002,67596.0,67595.0,0.36301908]
[1729625234322,0.244002,67596.0,67595.0,0.51905158]
[1729625236120,0.244002,67596.0,67595.0,0.5168325]
[1729625236928,0.244002,67596.0,67595.0,0.3608]
[1729625237119,0.244002,67596.0,67587.0,0.04400112]
[1729625237120,0.074009,67589.0,67587.0,0.04400112]
[1729625237317,0.074009,67589.0,67583.0,0.05862759]
[1729625237318,0.074012,67587.0,67586.0,0.1560325]
[1729625237521,0.362852,67587.0,67586.0,0.1560325]
[1729625239829,0.38247025,67587.0,67586.0,0.1560325]
[1729625243429,0.21247025,67587.0,67586.0,0.1560325]
[1729625243626,0.38247025,67587.0,67586.0,0.1560325]
[1729625245829,0.434797,67601.0,67586.0,0.7608455]
[1729625246045,0.074001,67597.0,67596.0,0.1560325]
[1729625246338,0.244001,67597.0,67596.0,0.1560325]
[1729625247431,0.17,67597.0,67595.0,0.3608]
[1729625247625,0.074002,67596.0,67595.0,0.3608]
[1729625247822,0.17,67597.0,67586.0,0.50812734]
[1729625248034,0.074003,67595.0,67594.0,0.0586013]
[1729625248231,0.074004,67594.0,67593.0,0.2146338]
[1729625251832,0.244004,67594.0,67593.0,0.2146338]
[1729625252846,0.244004,67594.0,67593.0,0.1560325]
[1729625253135,0.17,67594.0,67593.0,0.21465497]
[1729625253337,0.244004,67594.0,67593.0,0.1560325]
[1729625253936,0.356364,67594.0,67593.0,0.1560325]
[1729625254336,0.296364,67594.0,67593.0,0.1560325]
[1729625254832,0.32495967,67594.0,67593.0,0.1560325]
[1729625255240,0.074008,67590.0,67587.0,0.074011]
[1729625255538,0.13859567,67589.0,67587.0,0.074011]
[1729625255753,0.02859567,67588.0,67587.0,0.074011]
[1729625256238,0.02859567,67588.0,67587.0,0.2300435]
[1729625256440,0.0285952,67588.0,67587.0,0.2300435]
[1729625260042,0.0285952,67588.0,67587.0,0.1560325]
[1729625260355,0.1026052,67588.0,67587.0,0.1560325]
[1729625261052,0.10260525,67588.0,67587.0,0.1560325]
[1729625262841,0.07401,67588.0,67587.0,0.26677119]
[1729625264342,0.07401,67588.0,67587.0,0.34078319]
[1729625265835,0.07401,67588.0,67587.0,0.34077153]
[1729625268741,0.07401,67588.0,67587.0,0.26675953]
[1729625270049,0.07401,67588.0,67587.0,0.39857666]
[1729625270346,0.18637,67588.0,67587.0,0.39857666]
[1729625272954,0.11236,67588.0,67587.0,0.39857666]
[1729625274554,0.18637,67588.0,67587.0,0.39857666]
[1729625274753,0.18333,67588.0,67587.0,0.39857666]
[1729625275248,0.01984581,67589.0,67587.0,0.26675953]
[1729625275446,0.10932,67588.0,67587.0,0.074012]
[1729625275755,0.10932,67589.0,67588.0,0.07401]
[1729625275953,0.10932,67589.0,67588.0,0.18419825]
[1729625276161,0.10932,67589.0,67588.0,0.34023075]
[1729625276650,0.10932,67589.0,67588.0,0.2300425]
[1729625278047,0.10932,67589.0,67588.0,0.3402206]
[1729625279143,0.01908351,67590.0,67589.0,0.074009]
[1729625279349,0.0303,67604.0,67589.0,0.2660325]
[1729625279654,0.183993,67604.0,67603.0,0.1560325]
[1729625279858,0.293313,67604.0,67603.0,0.1560325]
[1729625281042,0.31297632,67604.0,67603.0,0.1560325]
[1729625283262,0.073995,67602.0,67598.0,0.183999]
[1729625283462,0.183995,67602.0,67598.0,0.183999]
[1729625283755,0.183995,67602.0,67601.0,0.1560325]
[1729625292878,0.24882881,67602.0,67601.0,0.1560325]
[1729625294784,0.24882893,67602.0,67601.0,0.1560325]
[1729625295173,0.17483393,67602.0,67601.0,0.1560325]
[1729625295383,0.24882893,67602.0,67601.0,0.1560325]
[1729625298181,0.24882893,67602.0,67601.0,0.5168325]
[1729625299585,0.24882891,67602.0,67601.0,0.5168325]
[1729625300083,0.183995,67602.0,67601.0,0.5168325]
[1729625301981,0.073995,67602.0,67601.0,0.5168325]
[1729625302189,0.183995,67602.0,67601.0,0.5168325]
[1729625303386,0.14696598,67602.0,67601.0,0.5168325]
[1729625303590,0.14696598,67602.0,67601.0,0.59029621]
[1729625303979,0.14696598,67602.0,67601.0,0.5168325]
[1729625304391,0.14696598,67602.0,67601.0,0.59029621]
[1729625305291,0.14696598,67602.0,67601.0,0.62599741]
[1729625307984,0.25723049,67602.0,67601.0,0.5168325]
[1729625308292,0.32364786,67602.0,67601.0,0.5168325]
[1729625308491,0.40532245,67602.0,67601.0,0.5168325]
[1729625309495,0.25723049,67602.0,67601.0,0.5168325]
[1729625313998,0.25723217,67602.0,67601.0,0.5168325]
[1729625314898,0.14696598,67602.0,67601.0,0.62609938]
[1729625318904,0.14696598,67602.0,67601.0,0.62613771]
[1729625323004,0.25723287,67602.0,67601.0,0.5168325]
[1729625323199,0.25723287,67602.0,67601.0,0.1560325]
[1729625323596,0.25723311,67602.0,67601.0,0.1560325]
[1729625330006,0.14696598,67602.0,67601.0,0.26534011]
[1729625338118,0.14696598,67602.0,67601.0,0.1560325]
[1729625339118,0.03696598,67602.0,67601.0,0.1560325]
[1729625343221,0.073995,67602.0,67601.0,0.1560325]
[1729625345321,0.073995,67602.0,67601.0,0.2660325]
[1729625347529,0.3608,67647.0,67602.0,0.44372]
[1729625347718,0.3608,67647.0,67631.0,0.073962]
[1729625347719,0.061,67642.0,67631.0,0.073962]
[1729625347912,0.061,67642.0,67629.0,0.3608]
[1729625347913,0.11,67640.0,67634.0,0.07396]
[1729625348221,0.11,67636.0,67633.0,0.07396]
[1729625348421,0.11,67636.0,67631.0,0.073963]
[1729625348815,0.11,67636.0,67635.0,0.3608]
[1729625349015,0.569669,67636.0,67635.0,0.24236348]
[1729625349220,0.459669,67636.0,67635.0,0.07951326]
[1729625349420,0.459669,67636.0,67635.0,0.15347226]
[1729625350330,0.459669,67636.0,67633.0,0.02660471]
[1729625350526,0.459669,67635.0,67633.0,0.02660471]
[1729625350825,0.459669,67634.0,67633.0,0.10056571]
[1729625351227,0.820469,67634.0,67631.0,0.11]
[1729625351420,0.459669,67633.0,67632.0,0.073962]
[1729625352023,0.459669,67633.0,67629.0,0.073965]
[1729625352331,0.11,67630.0,67624.0,0.11]
[1729625352526,0.3608,67625.0,67624.0,0.183971]
[1729625352720,0.820469,67625.0,67624.0,0.183971]
[1729625353024,0.82047757,67625.0,67624.0,0.183971]
[1729625353216,0.3608,67625.0,67624.0,0.183971]
[1729625353621,0.4708,67625.0,67615.0,0.00212]
[1729625353836,0.3608,67618.0,67617.0,0.073979]
[1729625354132,0.434778,67618.0,67617.0,0.073979]
[1729625354717,0.3608,67618.0,67617.0,0.073979]
[1729625365426,0.073973,67623.0,67617.0,0.073979]
[1729625365621,0.073973,67623.0,67622.0,0.11]
[1729625366438,0.073973,67623.0,67622.0,0.183972]
[1729625367030,0.0627,67624.0,67622.0,0.11]
[1729625367228,0.4235,67624.0,67623.0,0.073972]
[1729625368237,0.38648441,67624.0,67623.0,0.073972]
[1729625369534,0.38648441,67624.0,67623.0,0.14727788]
[1729625369932,0.38648441,67624.0,67623.0,0.073972]
[1729625370130,0.073973,67622.0,67621.0,0.09737988]
[1729625370341,0.073973,67622.0,67621.0,0.073974]
[1729625370835,0.38648441,67624.0,67621.0,0.073974]
[1729625371144,0.4708,67622.0,67611.0,0.09018559]
[1729625371333,0.4708,67622.0,67618.0,0.05870048]
[1729625371334,0.073974,67621.0,67618.0,0.05870048]
[1729625371533,0.073984,67612.0,67611.0,0.00221848]
[1729625371734,0.653664,67612.0,67611.0,0.00221848]
[1729625371934,2.153664,67612.0,67611.0,0.00221848]
[1729625373538,2.07968,67612.0,67608.0,0.11]
[1729625373839,0.3608,67611.0,67608.0,0.11]
[1729625374043,0.073987,67610.0,67608.0,0.11]
[1729625374631,0.0317,67609.0,67608.0,0.11]
[1729625374841,0.1417,67609.0,67608.0,0.11]
[1729625377340,0.215687,67609.0,67608.0,0.11]
[1729625378645,0.576487,67609.0,67608.0,0.11]
[1729625379033,0.576487,67609.0,67608.0,0.183989]
[1729625379238,0.215687,67609.0,67608.0,0.183989]
[1729625379437,0.01972566,67612.0,67611.0,0.073985]
[1729625379643,0.3608,67615.0,67614.0,0.073982]
[1729625379844,0.3608,67615.0,67614.0,0.183982]
[1729625380944,0.38063319,67615.0,67614.0,0.11]
[1729625381446,0.3608,67615.0,67614.0,0.183982]
[1729625382846,0.0301,67620.0,67617.0,0.073978]
[1729625383045,0.04699334,67620.0,67619.0,0.11]
[1729625383347,0.04699334,67620.0,67619.0,0.22174356]
[1729625384234,0.12096834,67620.0,67619.0,0.22174356]
[1729625385247,0.12096834,67620.0,67619.0,0.22179894]
[1729625386042,0.3608,67621.0,67619.0,0.22179894]
[1729625386242,0.30897507,67621.0,67620.0,0.27374105]
[1729625386444,0.30897507,67621.0,67620.0,0.18577394]
[1729625390347,0.30897507,67621.0,67620.0,0.073975]
[1729625395248,0.073975,67620.0,67619.0,0.11]
[1729625395448,0.073975,67620.0,67619.0,0.183976]
[1729625397342,0.073975,67620.0,67619.0,0.11]
[1729625397546,0.41897507,67621.0,67617.0,0.183978]
[1729625397755,0.183978,67618.0,67617.0,0.183978]
[1729625398361,0.1387944,67618.0,67617.0,0.183978]
[1729625402357,0.1387944,67618.0,67617.0,0.11]
[1729625404060,0.1387944,67618.0,67617.0,0.183979]
[1729625405464,0.073978,67618.0,67617.0,0.29543421]
[1729625406671,0.073978,67618.0,67617.0,0.183979]
[1729625407355,0.434776,67620.0,67619.0,0.073976]
[1729625407554,0.434776,67620.0,67619.0,0.183976]
[1729625407959,0.3608,67620.0,67619.0,0.183976]
[1729625408459,0.3608,67620.0,67612.0,0.073984]
[1729625408665,0.3608,67620.0,67617.0,0.22169178]
[1729625408856,0.073978,67618.0,67617.0,0.11]
[1729625409057,0.073978,67618.0,67617.0,0.183979]
[1729625412967,0.13879505,67618.0,67617.0,0.183979]
[1729625417173,0.13879505,67618.0,67617.0,0.073979]
[1729625417470,0.06481705,67618.0,67617.0,0.11]
[1729625417659,0.13879505,67618.0,67617.0,0.183979]
[1729625418159,0.13879455,67618.0,67617.0,0.183979]
[1729625418361,0.13879455,67618.0,67617.0,0.11]
[1729625418567,0.13879455,67618.0,67617.0,0.183979]
[1729625418767,0.13879455,67618.0,67617.0,0.11]
[1729625419574,0.13879455,67618.0,67617.0,0.183979]
[1729625420365,0.13879455,67618.0,67617.0,0.11]
[1729625420771,0.03695899,67618.0,67617.0,0.22181357]
[1729625422268,0.14695899,67618.0,67617.0,0.11181357]
[1729625423866,0.14695899,67618.0,67617.0,0.22181357]
[1729625424468,0.073946,67648.0,67637.0,0.073957]
[1729625424669,0.3608,67651.0,67618.0,0.44368]
[1729625424670,0.3608,67651.0,67650.0,0.073943]
[1729625424872,0.3608,67651.0,67650.0,0.18575657]
[1729625425071,0.3608,67651.0,67650.0,0.073943]
[1729625425261,0.3608,67651.0,67650.0,0.183943]
[1729625425460,0.3608,67657.0,67653.0,0.073939]
[1729625425664,0.3608,67657.0,67656.0,0.11]
[1729625425863,0.3608,67657.0,67656.0,0.183936]
[1729625426276,0.3608,67657.0,67656.0,0.17]
[1729625426779,0.50860436,67657.0,67656.0,0.17]
[1729625429479,0.50860436,67657.0,67656.0,0.243936]
[1729625430077,0.50860436,67657.0,67647.0,0.073946]
[1729625430379,0.50860436,67657.0,67653.0,0.17]
[1729625431074,0.61720436,67657.0,67656.0,0.17]
[1729625431270,0.61720436,67657.0,67656.0,0.243936]
[1729625431673,0.25640436,67657.0,67656.0,0.243936]
[1729625432269,0.14780436,67657.0,67656.0,0.243936]
[1729625436381,0.50860436,67657.0,67652.0,0.17]
[1729625436588,0.5308,67655.0,67649.0,0.17]
[1729625436795,0.073942,67651.0,67649.0,0.17]
[1729625436996,0.073938,67654.0,67650.0,0.073942]
[1729625437297,0.073938,67654.0,67653.0,0.17]
[1729625437689,1.573938,67654.0,67653.0,0.17]
[1729625438495,0.07394,67653.0,67640.0,0.073953]
[1729625438695,0.3608,67641.0,67640.0,0.073954]
[1729625439991,0.073952,67641.0,67640.0,0.073954]
[1729625440188,0.073957,67637.0,67636.0,0.00221734]
[1729625440400,0.073959,67636.0,67625.0,0.073969]
[1729625440695,0.073973,67622.0,67621.0,0.073974]
[1729625442797,0.0316,67625.0,67621.0,0.18442398]
[1729625443097,0.0316,67625.0,67622.0,0.35442198]
[1729625443098,0.073972,67623.0,67622.0,0.35442198]
[1729625444494,0.0316,67625.0,67622.0,0.35442198]
[1729625444804,0.0316,67625.0,67623.0,0.11044998]
[1729625444999,0.0316,67625.0,67622.0,0.243972]
[1729625445000,0.10557,67625.0,67624.0,0.11044998]
[1729625445888,0.10557,67625.0,67624.0,0.18442098]
[1729625448687,0.10557,67625.0,67624.0,0.073971]
[1729625449097,0.10557,67625.0,67624.0,0.18377746]
[1729625450697,0.07397,67625.0,67624.0,0.18377746]
[1729625450894,0.07397,67625.0,67624.0,0.18369813]
[1729625451805,0.07397,67625.0,67624.0,0.10972713]
[1729625452004,0.24397,67625.0,67624.0,0.10972713]
[1729625452401,0.24397,67625.0,67624.0,0.18303342]
[1729625452605,0.24397,67625.0,67617.0,0.08793266]
[1729625452810,0.24397,67625.0,67611.0,0.00221814]
[1729625452811,0.3608,67618.0,67611.0,0.00221814]
[1729625453107,0.243983,67613.0,67612.0,0.10989799]
[1729625454504,0.19215088,67613.0,67612.0,0.10989799]
[1729625455603,0.073984,67612.0,67611.0,0.00221814]
[1729625455802,0.434784,67612.0,67611.0,0.11186315]
[1729625456207,0.434784,67612.0,67611.0,0.18584815]
[1729625457622,0.3608,67612.0,67611.0,0.18584815]
[1729625457912,0.30896746,67612.0,67611.0,0.18584815]
[1729625458110,0.01393845,67616.0,67611.0,0.11186315]
[1729625458309,0.182579,67617.0,67613.0,0.17]
[1729625458505,0.182579,67617.0,67616.0,0.07398]
[1729625458703,0.182579,67617.0,67616.0,0.18299215]
[1729625458906,0.10853815,67617.0,67616.0,0.18299215]
[1729625459810,0.073979,67617.0,67616.0,0.18299215]
[1729625460211,0.4694,67618.0,67616.0,0.1085747]
[1729625460415,0.073982,67614.0,67613.0,0.08793266]
[1729625460604,0.243979,67617.0,67613.0,0.10858336]
[1729625460803,0.243979,67617.0,67614.0,0.10858336]
[1729625461004,0.073983,67613.0,67612.0,0.073983]
[1729625461207,0.243983,67613.0,67612.0,0.10862605]
[1729625462311,0.17,67613.0,67611.0,0.00221814]
[1729625462514,0.105984,67612.0,67611.0,0.00221814]
[1729625462817,0.073991,67606.0,67599.0,0.08793266]
[1729625463116,0.074005,67593.0,67592.0,0.08793266]
[1729625463418,0.074005,67593.0,67586.0,0.08793266]